[Event "Titled Tuesday Blitz June 21 Late 2022"]
[White "Mahdavi, Reza"]
[Black "Colpe, Malte"]
[WhiteFideId "12595926"]
[BlackFideId "24623075"]
[WhiteElo "2265"]
[BlackElo "2328"]
[Result "1-0"]
[Round "04"]
[TimeControl "180+1"]
[Date "2022.06.22"]
[WhiteClock "0:00:28"]
[BlackClock "0:00:16"]

1. e4 {[%clk 0:03:00]}  c5 {[%clk 0:02:58]} 2. Nf3 {[%clk 0:02:59]}  Nc6 {[%clk 0:02:57]} 3. Bb5 {[%clk 0:03:00]}  d6 {[%clk 0:02:55]} 4. O-O {[%clk 0:03:00]}  a6 {[%clk 0:02:52]} 5. Bxc6+ {[%clk 0:02:55]}  bxc6 {[%clk 0:02:53]} 6. Re1 {[%clk 0:02:48]}  e5 {[%clk 0:02:52]} 7. c3 {[%clk 0:02:46]}  f5 {[%clk 0:02:50]} 8. d4 {[%clk 0:02:46]}  fxe4 {[%clk 0:02:49]} 9. Rxe4 {[%clk 0:02:40]}  Bf5 {[%clk 0:02:43]} 10. Re1 {[%clk 0:02:38]}  e4 {[%clk 0:02:41]} 11. Bg5 {[%clk 0:02:22]}  Be7 {[%clk 0:02:38]} 12. Bxe7 {[%clk 0:02:19]}  Nxe7 {[%clk 0:02:39]} 13. Nh4 {[%clk 0:02:17]}  O-O {[%clk 0:02:32]} 14. Nxf5 {[%clk 0:02:17]}  Nxf5 {[%clk 0:02:33]} 15. Rxe4 {[%clk 0:02:16]}  cxd4 {[%clk 0:02:20]} 16. cxd4 {[%clk 0:02:17]}  Rb8 {[%clk 0:02:18]} 17. Qd2 {[%clk 0:02:14]}  d5 {[%clk 0:02:10]} 18. Re5 {[%clk 0:02:11]}  Qh4 {[%clk 0:02:06]} 19. Nc3 {[%clk 0:01:38]}  Nxd4 {[%clk 0:02:01]} 20. Rf1 {[%clk 0:01:23]}  Qg4 {[%clk 0:01:51]} 21. Kh1 {[%clk 0:01:19]}  Nf3 {[%clk 0:01:43]} 22. gxf3 {[%clk 0:01:19]}  Qxf3+ {[%clk 0:01:43]} 23. Kg1 {[%clk 0:01:19]}  Rf4 {[%clk 0:01:12]} 24. Ne2 {[%clk 0:01:08]}  Rg4+ {[%clk 0:00:46]} 25. Ng3 {[%clk 0:01:07]}  Rf8 {[%clk 0:00:39]} 26. Rfe1 {[%clk 0:00:49]}  d4 {[%clk 0:00:28]} 27. Re8 {[%clk 0:00:48]}  Rf4 {[%clk 0:00:27]} 28. Rxf8+ {[%clk 0:00:48]}  Kxf8 {[%clk 0:00:27]} 29. Qb4+ {[%clk 0:00:47]}  Kf7 {[%clk 0:00:25]} 30. Qe7+ {[%clk 0:00:47]}  Kg6 {[%clk 0:00:25]} 31. Re6+ {[%clk 0:00:46]}  Rf6 {[%clk 0:00:25]} 32. Qe8+ {[%clk 0:00:44]}  Kh6 {[%clk 0:00:23]} 33. Rxf6+ {[%clk 0:00:42]}  gxf6 {[%clk 0:00:22]} 34. Qf8+ {[%clk 0:00:41]}  Kg6 {[%clk 0:00:20]} 35. Qg8+ {[%clk 0:00:40]}  Kh6 {[%clk 0:00:20]} 36. Qe6 {[%clk 0:00:34]}  d3 {[%clk 0:00:19]} 37. Nf5+ {[%clk 0:00:29]}  Kg6 {[%clk 0:00:16]} 38. Nh4+ {[%clk 0:00:28]} 1-0


[Site "https://www.chess.com"]

[Event "Titled Tuesday Blitz June 21 Late 2022"]
[White "Mickiewicz, Piotr"]
[Black "Bjelobrk, Igor"]
[WhiteFideId "1114891"]
[BlackFideId "4300726"]
[WhiteElo "2209"]
[BlackElo "2335"]
[Result "1-0"]
[Round "04"]
[TimeControl "180+1"]
[Date "2022.06.22"]
[WhiteClock "0:00:08"]
[BlackClock "0:00:10"]

1. e4 {[%clk 0:03:00]}  e5 {[%clk 0:02:58]} 2. Nf3 {[%clk 0:03:00]}  Nc6 {[%clk 0:02:58]} 3. Nc3 {[%clk 0:03:00]}  Nf6 {[%clk 0:02:58]} 4. d4 {[%clk 0:03:00]}  exd4 {[%clk 0:02:57]} 5. Nxd4 {[%clk 0:03:01]}  Bb4 {[%clk 0:02:56]} 6. Nxc6 {[%clk 0:03:01]}  bxc6 {[%clk 0:02:55]} 7. Bd3 {[%clk 0:03:01]}  d5 {[%clk 0:02:54]} 8. exd5 {[%clk 0:03:00]}  O-O {[%clk 0:02:54]} 9. O-O {[%clk 0:03:00]}  Bg4 {[%clk 0:02:51]} 10. f3 {[%clk 0:02:51]}  Bh5 {[%clk 0:02:50]} 11. Qe1 {[%clk 0:02:39]}  cxd5 {[%clk 0:02:44]} 12. Qh4 {[%clk 0:02:36]}  Be7 {[%clk 0:02:35]} 13. Bg5 {[%clk 0:02:34]}  Bg6 {[%clk 0:02:34]} 14. Bxg6 {[%clk 0:02:31]}  hxg6 {[%clk 0:02:33]} 15. Rad1 {[%clk 0:02:30]}  c6 {[%clk 0:02:33]} 16. Rfe1 {[%clk 0:02:29]}  Re8 {[%clk 0:02:33]} 17. Kh1 {[%clk 0:02:16]}  Rb8 {[%clk 0:02:24]} 18. b3 {[%clk 0:02:14]}  Rb4 {[%clk 0:02:10]} 19. Rd4 {[%clk 0:00:47]}  a5 {[%clk 0:01:35]} 20. a4 {[%clk 0:00:36]}  Bc5 {[%clk 0:01:18]} 21. Rxb4 {[%clk 0:00:18]}  Bxb4 {[%clk 0:01:07]} 22. Bd2 {[%clk 0:00:17]}  Rxe1+ {[%clk 0:00:55]} 23. Qxe1 {[%clk 0:00:16]}  Qd7 {[%clk 0:00:53]} 24. Ne2 {[%clk 0:00:16]}  c5 {[%clk 0:00:22]} 25. Bxb4 {[%clk 0:00:15]}  axb4 {[%clk 0:00:20]} 26. Qd2 {[%clk 0:00:16]}  Qe6 {[%clk 0:00:18]} 27. Nf4 {[%clk 0:00:15]}  Qe5 {[%clk 0:00:18]} 28. g3 {[%clk 0:00:15]}  d4 {[%clk 0:00:16]} 29. Nd3 {[%clk 0:00:14]}  Qd5 {[%clk 0:00:16]} 30. Qe2 {[%clk 0:00:14]}  Qf5 {[%clk 0:00:15]} 31. g4 {[%clk 0:00:13]}  Qg5 {[%clk 0:00:14]} 32. h3 {[%clk 0:00:13]}  Qd5 {[%clk 0:00:13]} 33. Kg2 {[%clk 0:00:13]}  g5 {[%clk 0:00:13]} 34. Qe5 {[%clk 0:00:12]}  Qxe5 {[%clk 0:00:12]} 35. Nxe5 {[%clk 0:00:13]}  Nd5 {[%clk 0:00:12]} 36. Kf2 {[%clk 0:00:12]}  f6 {[%clk 0:00:09]} 37. Nd7 {[%clk 0:00:10]}  Ne3 {[%clk 0:00:09]} 38. a5 {[%clk 0:00:10]}  Nxc2 {[%clk 0:00:09]} 39. a6 {[%clk 0:00:10]}  d3 {[%clk 0:00:10]} 40. Nxc5 {[%clk 0:00:09]}  Nd4 {[%clk 0:00:09]} 41. Nxd3 {[%clk 0:00:07]}  Nb5 {[%clk 0:00:09]} 42. Nxb4 {[%clk 0:00:07]}  Kf8 {[%clk 0:00:09]} 43. Nd5 {[%clk 0:00:07]}  Ke8 {[%clk 0:00:09]} 44. b4 {[%clk 0:00:07]}  Kd7 {[%clk 0:00:09]} 45. Nc3 {[%clk 0:00:07]}  Na7 {[%clk 0:00:08]} 46. b5 {[%clk 0:00:07]}  Kc7 {[%clk 0:00:09]} 47. Ke3 {[%clk 0:00:08]}  Kb6 {[%clk 0:00:09]} 48. Ke4 {[%clk 0:00:08]}  Nc8 {[%clk 0:00:09]} 49. Kf5 {[%clk 0:00:08]}  Nd6+ {[%clk 0:00:08]} 50. Kg6 {[%clk 0:00:08]}  Nc4 {[%clk 0:00:08]} 51. Kxg7 {[%clk 0:00:08]}  Ne5 {[%clk 0:00:09]} 52. Kxf6 {[%clk 0:00:08]}  Nxf3 {[%clk 0:00:09]} 53. Kf5 {[%clk 0:00:09]}  Ka7 {[%clk 0:00:08]} 54. Ne4 {[%clk 0:00:09]}  Kb6 {[%clk 0:00:08]} 55. Nxg5 {[%clk 0:00:09]}  Nd4+ {[%clk 0:00:08]} 56. Ke4 {[%clk 0:00:08]}  Nxb5 {[%clk 0:00:09]} 57. Ne6 {[%clk 0:00:08]}  Kxa6 {[%clk 0:00:09]} 58. Ke5 {[%clk 0:00:08]}  Kb6 {[%clk 0:00:10]} 59. g5 {[%clk 0:00:08]}  Kc6 {[%clk 0:00:10]} 60. Nd4+ {[%clk 0:00:07]}  Nxd4 {[%clk 0:00:10]} 61. Kxd4 {[%clk 0:00:08]} 1-0


[Site "https://www.chess.com"]

[Event "Titled Tuesday Blitz June 21 Late 2022"]
[White "Needleman, Alejandro"]
[Black "Sailer, Mike"]
[WhiteFideId "100730"]
[BlackFideId "2012901"]
[WhiteElo "2302"]
[BlackElo "2109"]
[Result "1-0"]
[Round "04"]
[TimeControl "180+1"]
[Date "2022.06.22"]
[WhiteClock "0:00:38"]
[BlackClock "0:00:01"]

1. e4 {[%clk 0:02:56]}  d5 {[%clk 0:02:58]} 2. exd5 {[%clk 0:02:55]}  Qxd5 {[%clk 0:02:53]} 3. Nc3 {[%clk 0:02:54]}  Qd6 {[%clk 0:02:52]} 4. d4 {[%clk 0:02:54]}  Nf6 {[%clk 0:02:53]} 5. Nf3 {[%clk 0:02:55]}  c6 {[%clk 0:02:54]} 6. Ne5 {[%clk 0:02:53]}  Nbd7 {[%clk 0:02:53]} 7. Bf4 {[%clk 0:02:53]}  Nxe5 {[%clk 0:02:44]} 8. Bxe5 {[%clk 0:02:52]}  Qb4 {[%clk 0:02:42]} 9. Rb1 {[%clk 0:02:51]}  Bg4 {[%clk 0:02:39]} 10. Be2 {[%clk 0:02:48]}  Bxe2 {[%clk 0:02:39]} 11. Qxe2 {[%clk 0:02:49]}  e6 {[%clk 0:02:38]} 12. O-O {[%clk 0:02:47]}  Be7 {[%clk 0:02:38]} 13. a3 {[%clk 0:02:47]}  Qa5 {[%clk 0:02:37]} 14. b4 {[%clk 0:02:43]}  Qxa3 {[%clk 0:02:26]} 15. Rb3 {[%clk 0:02:43]}  Qa6 {[%clk 0:02:19]} 16. Qxa6 {[%clk 0:02:38]}  bxa6 {[%clk 0:02:19]} 17. Ra1 {[%clk 0:02:38]}  O-O {[%clk 0:02:08]} 18. Rxa6 {[%clk 0:02:38]}  Nd5 {[%clk 0:02:08]} 19. Nxd5 {[%clk 0:02:34]}  cxd5 {[%clk 0:02:07]} 20. c3 {[%clk 0:02:31]}  Rfc8 {[%clk 0:02:06]} 21. Kf1 {[%clk 0:02:31]}  Bf6 {[%clk 0:01:30]} 22. Bd6 {[%clk 0:02:25]}  Bd8 {[%clk 0:01:17]} 23. Ke2 {[%clk 0:02:21]}  Bb6 {[%clk 0:01:16]} 24. Kd3 {[%clk 0:02:20]}  Rc6 {[%clk 0:01:06]} 25. Bc5 {[%clk 0:02:20]}  Rac8 {[%clk 0:01:05]} 26. Rba3 {[%clk 0:02:19]}  f6 {[%clk 0:00:58]} 27. Bxb6 {[%clk 0:02:06]}  axb6 {[%clk 0:00:57]} 28. Ra7 {[%clk 0:02:06]}  R8c7 {[%clk 0:00:54]} 29. Rxc7 {[%clk 0:02:03]}  Rxc7 {[%clk 0:00:54]} 30. Ra8+ {[%clk 0:02:03]}  Kf7 {[%clk 0:00:53]} 31. Rb8 {[%clk 0:02:03]}  Rc6 {[%clk 0:00:48]} 32. f4 {[%clk 0:02:03]}  h5 {[%clk 0:00:43]} 33. g3 {[%clk 0:02:02]}  Kg6 {[%clk 0:00:43]} 34. Rb7 {[%clk 0:02:00]}  h4 {[%clk 0:00:23]} 35. gxh4 {[%clk 0:01:55]}  Kf5 {[%clk 0:00:22]} 36. Rxg7 {[%clk 0:01:54]}  Kxf4 {[%clk 0:00:22]} 37. h5 {[%clk 0:01:55]}  e5 {[%clk 0:00:19]} 38. dxe5 {[%clk 0:01:53]}  fxe5 {[%clk 0:00:19]} 39. Rg6 {[%clk 0:01:51]}  e4+ {[%clk 0:00:13]} 40. Kd4 {[%clk 0:01:49]}  Rc4+ {[%clk 0:00:13]} 41. Kxd5 {[%clk 0:01:50]}  Rxc3 {[%clk 0:00:13]} 42. Rxb6 {[%clk 0:01:45]}  Rh3 {[%clk 0:00:09]} 43. h6 {[%clk 0:01:44]}  e3 {[%clk 0:00:07]} 44. Re6 {[%clk 0:01:44]}  Kf3 {[%clk 0:00:05]} 45. b5 {[%clk 0:01:42]}  e2 {[%clk 0:00:04]} 46. b6 {[%clk 0:01:42]}  Rxh6 {[%clk 0:00:04]} 47. Rxh6 {[%clk 0:00:52]}  e1=Q {[%clk 0:00:04]} 48. Rf6+ {[%clk 0:00:52]}  Kg4 {[%clk 0:00:04]} 49. Rc6 {[%clk 0:00:48]}  Qd2+ {[%clk 0:00:03]} 50. Ke6 {[%clk 0:00:47]}  Qe3+ {[%clk 0:00:03]} 51. Kd7 {[%clk 0:00:47]}  Qd4+ {[%clk 0:00:03]} 52. Kc8 {[%clk 0:00:45]}  Qh8+ {[%clk 0:00:02]} 53. Kb7 {[%clk 0:00:44]}  Qh7+ {[%clk 0:00:01]} 54. Kb8 {[%clk 0:00:41]}  Qg8+ {[%clk 0:00:01]} 55. Rc8 {[%clk 0:00:38]} 1-0


[Site "https://www.chess.com"]

[Event "Titled Tuesday Blitz June 21 Late 2022"]
[White "Omariev, Maksim"]
[Black "Thiel, Thomas"]
[WhiteFideId "4193423"]
[BlackFideId "4615964"]
[WhiteElo "2483"]
[BlackElo "2228"]
[Result "1-0"]
[Round "04"]
[TimeControl "180+1"]
[Date "2022.06.22"]
[WhiteClock "0:00:39"]
[BlackClock "0:00:55"]

1. g4 {[%clk 0:03:00]}  d5 {[%clk 0:02:58]} 2. Bg2 {[%clk 0:03:00]}  c6 {[%clk 0:02:56]} 3. h3 {[%clk 0:02:59]}  e5 {[%clk 0:02:55]} 4. d4 {[%clk 0:02:59]}  e4 {[%clk 0:02:53]} 5. c4 {[%clk 0:02:59]}  Bd6 {[%clk 0:02:50]} 6. Nc3 {[%clk 0:02:59]}  Be6 {[%clk 0:02:47]} 7. Qb3 {[%clk 0:02:34]}  Qb6 {[%clk 0:02:29]} 8. c5 {[%clk 0:02:30]}  Qxb3 {[%clk 0:02:27]} 9. axb3 {[%clk 0:02:31]}  Bc7 {[%clk 0:02:26]} 10. b4 {[%clk 0:02:24]}  Na6 {[%clk 0:02:21]} 11. Ra4 {[%clk 0:02:18]}  Bd7 {[%clk 0:02:07]} 12. Bg5 {[%clk 0:02:06]}  f6 {[%clk 0:02:06]} 13. Bh4 {[%clk 0:02:05]}  Ne7 {[%clk 0:02:05]} 14. e3 {[%clk 0:02:05]}  h5 {[%clk 0:02:00]} 15. gxh5 {[%clk 0:01:59]}  Nf5 {[%clk 0:02:00]} 16. Bg3 {[%clk 0:01:47]}  Bxg3 {[%clk 0:01:58]} 17. fxg3 {[%clk 0:01:48]}  Nxe3 {[%clk 0:01:57]} 18. Kf2 {[%clk 0:01:44]}  Nc2 {[%clk 0:01:53]} 19. Nge2 {[%clk 0:01:39]}  Ncxb4 {[%clk 0:01:50]} 20. g4 {[%clk 0:01:35]}  Nd3+ {[%clk 0:01:40]} 21. Kg3 {[%clk 0:01:35]}  Nxb2 {[%clk 0:01:40]} 22. Ra2 {[%clk 0:01:31]}  Nc4 {[%clk 0:01:39]} 23. Rb1 {[%clk 0:01:29]}  O-O-O {[%clk 0:01:35]} 24. Nf4 {[%clk 0:01:22]}  Ne3 {[%clk 0:01:30]} 25. Bh1 {[%clk 0:01:05]}  Kc7 {[%clk 0:01:07]} 26. Kf2 {[%clk 0:00:57]}  Nc4 {[%clk 0:01:06]} 27. Nfxd5+ {[%clk 0:00:43]}  cxd5 {[%clk 0:01:04]} 28. Nxd5+ {[%clk 0:00:43]}  Kc8 {[%clk 0:01:03]} 29. Ne7+ {[%clk 0:00:43]}  Kc7 {[%clk 0:01:02]} 30. Bxe4 {[%clk 0:00:40]}  Rhe8 {[%clk 0:00:55]} 31. Rxb7# {[%clk 0:00:39]} 1-0


[Site "https://www.chess.com"]

[Event "Titled Tuesday Blitz June 21 Late 2022"]
[White "Oparin, Grigoriy"]
[Black "Corrales Jimenez, Fidel"]
[WhiteFideId "24125890"]
[BlackFideId "3506690"]
[WhiteElo "2639"]
[BlackElo "2541"]
[Result "0-1"]
[Round "04"]
[TimeControl "180+1"]
[Date "2022.06.21"]
[WhiteClock "0:00:22"]
[BlackClock "0:00:47"]

1. d4 {[%clk 0:03:00]}  Nf6 {[%clk 0:02:59]} 2. c4 {[%clk 0:03:01]}  g6 {[%clk 0:03:00]} 3. Nf3 {[%clk 0:03:01]}  Bg7 {[%clk 0:02:59]} 4. Nc3 {[%clk 0:03:02]}  d5 {[%clk 0:02:59]} 5. cxd5 {[%clk 0:03:01]}  Nxd5 {[%clk 0:03:00]} 6. e4 {[%clk 0:03:02]}  Nxc3 {[%clk 0:03:00]} 7. bxc3 {[%clk 0:03:03]}  c5 {[%clk 0:03:01]} 8. Bb5+ {[%clk 0:03:03]}  Nc6 {[%clk 0:03:00]} 9. O-O {[%clk 0:03:03]}  O-O {[%clk 0:02:56]} 10. Bxc6 {[%clk 0:02:59]}  bxc6 {[%clk 0:02:56]} 11. Qc2 {[%clk 0:03:00]}  Qa5 {[%clk 0:02:53]} 12. a4 {[%clk 0:02:51]}  Ba6 {[%clk 0:02:53]} 13. Rd1 {[%clk 0:02:50]}  Rfb8 {[%clk 0:02:40]} 14. Ba3 {[%clk 0:02:48]}  Bc4 {[%clk 0:02:40]} 15. Rdc1 {[%clk 0:02:38]}  Qa6 {[%clk 0:02:20]} 16. e5 {[%clk 0:02:17]}  Bb3 {[%clk 0:01:56]} 17. Qd2 {[%clk 0:02:17]}  cxd4 {[%clk 0:01:56]} 18. cxd4 {[%clk 0:02:18]}  Rb7 {[%clk 0:01:53]} 19. Bc5 {[%clk 0:02:07]}  Rab8 {[%clk 0:01:50]} 20. h4 {[%clk 0:02:04]}  Bd5 {[%clk 0:01:50]} 21. Qf4 {[%clk 0:01:56]}  h6 {[%clk 0:01:39]} 22. Nh2 {[%clk 0:01:52]}  Qd3 {[%clk 0:01:33]} 23. Ng4 {[%clk 0:01:49]}  Kh7 {[%clk 0:01:32]} 24. a5 {[%clk 0:01:45]}  Rb1 {[%clk 0:01:23]} 25. Raxb1 {[%clk 0:01:41]}  Rxb1 {[%clk 0:01:24]} 26. Bxa7 {[%clk 0:01:32]}  h5 {[%clk 0:01:07]} 27. Rxb1 {[%clk 0:01:11]}  Qxb1+ {[%clk 0:01:08]} 28. Kh2 {[%clk 0:01:12]}  hxg4 {[%clk 0:01:08]} 29. Qxg4 {[%clk 0:01:06]}  Qe1 {[%clk 0:01:00]} 30. f3 {[%clk 0:00:31]}  Qxa5 {[%clk 0:01:00]} 31. Bc5 {[%clk 0:00:31]}  Qc7 {[%clk 0:00:57]} 32. h5 {[%clk 0:00:31]}  gxh5 {[%clk 0:00:54]} 33. Qxh5+ {[%clk 0:00:32]}  Kg8 {[%clk 0:00:55]} 34. Qh4 {[%clk 0:00:28]}  f6 {[%clk 0:00:54]} 35. f4 {[%clk 0:00:28]}  Qd7 {[%clk 0:00:54]} 36. Qh5 {[%clk 0:00:27]}  Bf7 {[%clk 0:00:53]} 37. Qf3 {[%clk 0:00:25]}  Qe8 {[%clk 0:00:47]} 38. Qe4 {[%clk 0:00:22]}  Bd5 {[%clk 0:00:47]} 39. Qf5 {[%clk 0:00:21]}  e6 {[%clk 0:00:46]} 40. Qg4 {[%clk 0:00:20]}  f5 {[%clk 0:00:47]} 41. Qh4 {[%clk 0:00:20]}  Qg6 {[%clk 0:00:46]} 42. g3 {[%clk 0:00:20]}  Qh6 {[%clk 0:00:46]} 43. Qxh6 {[%clk 0:00:20]}  Bxh6 {[%clk 0:00:47]} 44. Kg1 {[%clk 0:00:20]}  Bf8 {[%clk 0:00:47]} 45. Kf2 {[%clk 0:00:21]}  Bxc5 {[%clk 0:00:47]} 46. dxc5 {[%clk 0:00:22]}  Kf7 {[%clk 0:00:47]} 0-1


[Site "https://www.chess.com"]

[Event "Titled Tuesday Blitz June 21 Late 2022"]
[White "Oro, Luis"]
[Black "Fiorito, Fabian"]
[WhiteFideId "104094"]
[BlackFideId "100200"]
[WhiteElo "2367"]
[BlackElo "2395"]
[Result "1-0"]
[Round "04"]
[TimeControl "180+1"]
[Date "2022.06.22"]
[WhiteClock "0:00:45"]
[BlackClock "0:00:18"]

1. e4 {[%clk 0:03:00]}  c6 {[%clk 0:02:58]} 2. d4 {[%clk 0:03:01]}  d6 {[%clk 0:02:58]} 3. c3 {[%clk 0:02:55]}  Nf6 {[%clk 0:02:57]} 4. Bd3 {[%clk 0:02:54]}  e5 {[%clk 0:02:58]} 5. Nf3 {[%clk 0:02:53]}  Nbd7 {[%clk 0:02:57]} 6. O-O {[%clk 0:02:53]}  Be7 {[%clk 0:02:58]} 7. Nbd2 {[%clk 0:02:50]}  O-O {[%clk 0:02:58]} 8. Re1 {[%clk 0:02:50]}  Qc7 {[%clk 0:02:58]} 9. Nf1 {[%clk 0:02:50]}  b5 {[%clk 0:02:58]} 10. Ng3 {[%clk 0:02:50]}  Nb6 {[%clk 0:02:55]} 11. Bg5 {[%clk 0:02:42]}  Re8 {[%clk 0:02:54]} 12. Rc1 {[%clk 0:02:41]}  Be6 {[%clk 0:02:50]} 13. b3 {[%clk 0:02:37]}  h6 {[%clk 0:02:45]} 14. Bd2 {[%clk 0:02:32]}  Rad8 {[%clk 0:02:44]} 15. c4 {[%clk 0:02:31]}  bxc4 {[%clk 0:02:43]} 16. bxc4 {[%clk 0:02:31]}  c5 {[%clk 0:02:34]} 17. d5 {[%clk 0:02:26]}  Bd7 {[%clk 0:02:34]} 18. Nh4 {[%clk 0:02:17]}  Nfxd5 {[%clk 0:02:01]} 19. Nhf5 {[%clk 0:02:16]}  Nf4 {[%clk 0:01:57]} 20. Qg4 {[%clk 0:02:09]}  g6 {[%clk 0:01:52]} 21. Bxf4 {[%clk 0:01:42]}  exf4 {[%clk 0:01:52]} 22. Nxh6+ {[%clk 0:01:41]}  Kh7 {[%clk 0:01:23]} 23. Qxf4 {[%clk 0:01:38]}  Rf8 {[%clk 0:01:20]} 24. Ng4 {[%clk 0:01:17]}  Bxg4 {[%clk 0:01:10]} 25. Qxg4 {[%clk 0:01:18]}  Qd7 {[%clk 0:01:10]} 26. Qf3 {[%clk 0:01:17]}  Bg5 {[%clk 0:01:02]} 27. Rcd1 {[%clk 0:00:56]}  Kg7 {[%clk 0:00:59]} 28. e5 {[%clk 0:00:55]}  Qc7 {[%clk 0:00:49]} 29. e6 {[%clk 0:00:50]}  fxe6 {[%clk 0:00:46]} 30. Qg4 {[%clk 0:00:49]}  Qe7 {[%clk 0:00:29]} 31. Rxe6 {[%clk 0:00:47]}  Qf7 {[%clk 0:00:18]} 32. Rxg6+ {[%clk 0:00:46]}  Qxg6 {[%clk 0:00:18]} 33. Bxg6 {[%clk 0:00:45]} 1-0


[Site "https://www.chess.com"]

[Event "Titled Tuesday Blitz June 21 Late 2022"]
[White "Remolar Gallen, Jose"]
[Black "Araujo Filho, Luiz Antonio Coel"]
[WhiteFideId "2215187"]
[BlackFideId "2130661"]
[WhiteElo "2205"]
[BlackElo "2185"]
[Result "1/2-1/2"]
[Round "04"]
[TimeControl "180+1"]
[Date "2022.06.22"]
[WhiteClock "0:00:09"]
[BlackClock "0:00:06"]

1. d4 {[%clk 0:03:00]}  f5 {[%clk 0:02:59]} 2. Nf3 {[%clk 0:02:59]}  Nf6 {[%clk 0:02:58]} 3. c4 {[%clk 0:02:58]}  g6 {[%clk 0:02:59]} 4. Nc3 {[%clk 0:02:58]}  Bg7 {[%clk 0:02:59]} 5. g3 {[%clk 0:02:58]}  O-O {[%clk 0:02:59]} 6. Bg2 {[%clk 0:02:57]}  d6 {[%clk 0:03:00]} 7. O-O {[%clk 0:02:57]}  Nc6 {[%clk 0:03:01]} 8. Rb1 {[%clk 0:02:46]}  e5 {[%clk 0:02:59]} 9. dxe5 {[%clk 0:02:42]}  dxe5 {[%clk 0:02:59]} 10. Qxd8 {[%clk 0:02:41]}  Rxd8 {[%clk 0:02:58]} 11. Bg5 {[%clk 0:02:42]}  e4 {[%clk 0:02:52]} 12. Ne1 {[%clk 0:02:09]}  h6 {[%clk 0:02:50]} 13. Bxf6 {[%clk 0:02:09]}  Bxf6 {[%clk 0:02:51]} 14. Nd5 {[%clk 0:02:07]}  Be5 {[%clk 0:02:49]} 15. Nc2 {[%clk 0:01:57]}  Be6 {[%clk 0:02:42]} 16. Rfd1 {[%clk 0:01:53]}  Rd7 {[%clk 0:02:34]} 17. f3 {[%clk 0:01:35]}  exf3 {[%clk 0:02:24]} 18. exf3 {[%clk 0:01:34]}  Bxd5 {[%clk 0:02:23]} 19. cxd5 {[%clk 0:01:33]}  Ne7 {[%clk 0:02:22]} 20. f4 {[%clk 0:01:32]}  Bf6 {[%clk 0:02:23]} 21. Ne3 {[%clk 0:01:24]}  Re8 {[%clk 0:02:16]} 22. Kf2 {[%clk 0:01:22]}  Nc8 {[%clk 0:02:15]} 23. Nc4 {[%clk 0:00:51]}  Nd6 {[%clk 0:01:41]} 24. Nxd6 {[%clk 0:00:47]}  Rxd6 {[%clk 0:01:41]} 25. Rd2 {[%clk 0:00:46]}  Kf7 {[%clk 0:01:30]} 26. Rbd1 {[%clk 0:00:45]}  Ke7 {[%clk 0:01:30]} 27. Re2+ {[%clk 0:00:28]}  Kd7 {[%clk 0:01:29]} 28. Rxe8 {[%clk 0:00:28]}  Kxe8 {[%clk 0:01:30]} 29. b3 {[%clk 0:00:21]}  Kd7 {[%clk 0:01:30]} 30. Ke2 {[%clk 0:00:21]}  Ra6 {[%clk 0:01:28]} 31. Rd2 {[%clk 0:00:20]}  Kd6 {[%clk 0:01:28]} 32. Kd3 {[%clk 0:00:20]}  Ra5 {[%clk 0:01:09]} 33. b4 {[%clk 0:00:18]}  Ra3+ {[%clk 0:01:07]} 34. Kc4 {[%clk 0:00:16]}  Re3 {[%clk 0:01:04]} 35. Rc2 {[%clk 0:00:13]}  a6 {[%clk 0:01:03]} 36. a4 {[%clk 0:00:14]}  Ra3 {[%clk 0:00:59]} 37. a5 {[%clk 0:00:12]}  Re3 {[%clk 0:00:58]} 38. b5 {[%clk 0:00:11]}  axb5+ {[%clk 0:00:51]} 39. Kxb5 {[%clk 0:00:11]}  Bd4 {[%clk 0:00:50]} 40. a6 {[%clk 0:00:06]}  bxa6+ {[%clk 0:00:32]} 41. Kxa6 {[%clk 0:00:07]}  Bc5 {[%clk 0:00:29]} 42. Kb5 {[%clk 0:00:07]}  Rb3+ {[%clk 0:00:29]} 43. Kc4 {[%clk 0:00:07]}  Rb4+ {[%clk 0:00:26]} 44. Kd3 {[%clk 0:00:07]}  Ra4 {[%clk 0:00:22]} 45. Re2 {[%clk 0:00:07]}  Ra3+ {[%clk 0:00:15]} 46. Kd2 {[%clk 0:00:03]}  Ra2+ {[%clk 0:00:13]} 47. Kd3 {[%clk 0:00:03]}  Rxe2 {[%clk 0:00:13]} 48. Kxe2 {[%clk 0:00:04]}  Bg1 {[%clk 0:00:13]} 49. h3 {[%clk 0:00:04]}  Kc5 {[%clk 0:00:13]} 50. Kf3 {[%clk 0:00:04]}  Kd4 {[%clk 0:00:14]} 51. g4 {[%clk 0:00:04]}  Bh2 {[%clk 0:00:08]} 52. g5 {[%clk 0:00:02]}  hxg5 {[%clk 0:00:07]} 53. fxg5 {[%clk 0:00:03]}  Be5 {[%clk 0:00:07]} 54. h4 {[%clk 0:00:03]}  Bg7 {[%clk 0:00:06]} 55. Kg3 {[%clk 0:00:03]}  Ke5 {[%clk 0:00:05]} 56. Bf3 {[%clk 0:00:03]}  Bf8 {[%clk 0:00:04]} 57. h5 {[%clk 0:00:04]}  gxh5 {[%clk 0:00:03]} 58. Bxh5 {[%clk 0:00:05]}  f4+ {[%clk 0:00:02]} 59. Kf3 {[%clk 0:00:04]}  Kf5 {[%clk 0:00:02]} 60. Bf7 {[%clk 0:00:04]}  Kxg5 {[%clk 0:00:02]} 61. Be6 {[%clk 0:00:05]}  Bd6 {[%clk 0:00:01]} 62. Bg8 {[%clk 0:00:05]}  Be5 {[%clk 0:00:02]} 63. Be6 {[%clk 0:00:05]}  Bd6 {[%clk 0:00:03]} 64. Bg8 {[%clk 0:00:06]}  Kf6 {[%clk 0:00:03]} 65. Be6 {[%clk 0:00:06]}  Ke5 {[%clk 0:00:04]} 66. Bg8 {[%clk 0:00:06]}  Be7 {[%clk 0:00:04]} 67. Be6 {[%clk 0:00:07]}  c6 {[%clk 0:00:05]} 68. dxc6 {[%clk 0:00:06]}  Kxe6 {[%clk 0:00:05]} 69. Kxf4 {[%clk 0:00:07]}  Kd6 {[%clk 0:00:06]} 70. Ke4 {[%clk 0:00:07]}  Kc7 {[%clk 0:00:06]} 71. Kf3 {[%clk 0:00:08]}  Bd6 {[%clk 0:00:06]} 72. Ke2 {[%clk 0:00:09]}  Kxc6 {[%clk 0:00:06]} 1/2-1/2


[Site "https://www.chess.com"]